fUSD/lending_fUSD_20241209
["ID","MTS","AMOUNT","RATE_DAILY","PERIOD"]
[344736554,1733761837988,-44941813.35517431,0.000125,2]
[344736555,1733761837999,-494.29528094,0.000125,2]
[344736562,1733761838112,-33660.42307251,0.000125,2]
[344736565,1733761838124,-7454.82356919,0.000125,2]
[344736566,1733761838137,-284.0,0.000125,2]
[344736567,1733761838158,-1226.65,0.000125,2]
[344736568,1733761838171,-450.78316955,0.000125,2]
[344736569,1733761838198,-6019.5,0.000125,2]
[344736570,1733761838218,-1507.24805,0.000125,2]
[344736571,1733761838232,-7215.000006,0.000125,2]
[344736572,1733761838245,-2264.17538277,0.000125,2]
[344736573,1733761838259,-643.38944898,0.000125,2]
[344736575,1733761838274,-255.89999987,0.000125,2]
[344736578,1733761838325,-1854588.18257416,0.000125,2]
[344736579,1733761838339,-463.4202856,0.000125,2]
[344736581,1733761839529,-436.52,0.00011574,2]
[344736582,1733761839539,-5455.05889971,0.000125,2]
[344736583,1733761839551,-3076.04648245,0.000125,2]
[344736584,1733761839564,-24795.0,0.000125,2]
[344736585,1733761839575,-24545.0,0.000125,2]
[344736586,1733761839586,-7187.39652118,0.000125,2]
[344736587,1733761839650,-38532.47353637,0.000125,2]
[344736588,1733761839662,-1728.77262585,0.000125,2]
[344736589,1733761839675,-1925.36,0.000125,2]
[344736590,1733761839725,-1302.53483451,0.000125,2]
[344736591,1733761839769,-43066.99999836,0.000125,2]
[344736592,1733761839781,-919.87288998,0.000125,2]
[344736593,1733761839831,-2245.54570582,0.000125,2]
[344736594,1733761839843,-16000.0,0.000125,2]
[344736595,1733761839945,-398.341236,0.000125,2]
[344736596,1733761839960,-5168.879272,0.000125,2]
[344736602,1733761842503,-1136.98583956,0.000125,2]
[344736603,1733761842560,-456.65905653,0.000125,2]
[344736604,1733761842573,-512.98730173,0.000125,2]
[344736611,1733761843043,-15847.10924058,0.000125,2]
[344736613,1733761843055,-2952.3972,0.000125,2]
[344736616,1733761843067,-9722.469288,0.000125,2]
[344736618,1733761843078,-404.80604489,0.000125,2]
[344736619,1733761843117,-385.12796397,0.000125,2]
[344736620,1733761843131,-23897.6775,0.000125,2]
[344736626,1733761843179,-3742.63671395,0.000125,2]
[344736628,1733761843194,-2147.36041196,0.000125,2]
[344736630,1733761843235,-7036.67488288,0.000125,2]
[344736631,1733761843248,-261.04552448,0.000125,2]
[344736632,1733761843260,-5514.60459984,0.000125,2]
[344736633,1733761843273,-4065.97779514,0.000125,2]
[344736644,1733761845487,-18440.93475679,0.000125,2]
[344736646,1733761845499,-301567.83027221,0.000125,2]
[344736652,1733761845548,-23999.99999,0.000125,2]
[344736660,1733761845607,-301.04524444,0.000125,2]
[344736662,1733761845619,-1947.7999999,0.000125,2]
[344736663,1733761845630,-914.86918584,0.000125,2]
[344736664,1733761845782,-8137.000001,0.000125,2]
[344736665,1733761845794,-798.665,0.000125,2]
[344736666,1733761845806,-478.829997,0.000125,2]
[344736667,1733761845817,-345.55,0.000125,2]
[344736668,1733761845841,-4800.9,0.000125,2]
[344736669,1733761845853,-2758.3,0.000125,2]
[344736670,1733761845864,-1654.07342479,0.000125,2]
[344736706,1733762011388,649.25,9.671e-05,2]
[344736707,1733762282106,12988191.05625489,0.0002,120]
[344736708,1733762282151,2000000.0,0.0002,120]
[344736710,1733762611929,337.42,0.0001,2]
[344736712,1733762987795,616.78,9.164e-05,2]
[344736721,1733763031666,-498.3,0.00011067,2]
[344736722,1733763031678,-1279.999995,0.00011067,2]
[344736723,1733763031689,-5151.4380307,0.00011067,2]
[344736724,1733763031752,-4997.39184474,0.00011067,2]
[344736725,1733763031761,-206.5541591,0.00011138,2]
[344736726,1733763031771,-650.78,0.00011166,2]
[344736727,1733763031780,-150.0,0.00011208,2]
[344736728,1733763031790,-2000.0,0.00011236,2]
[344736729,1733763031803,-11553.26,0.00011238,2]
[344736730,1733763031812,-250.0,0.00011253,2]
[344736731,1733763031821,-150.0,0.00011383,2]
[344736732,1733763031831,-616.78,0.00011428,2]
[344736733,1733763031841,-542.84607576,0.00011481,2]
[344736734,1733763031855,-6198.89392424,0.00011481,2]
[344736735,1733763031864,-549.86,0.000115,2]
[344736736,1733763031874,-250.0,0.000115,2]
[344736737,1733763031883,-337.43,0.00011527,2]
[344736738,1733763031892,-1000.0,0.00011545,2]
[344736739,1733763031901,-167.44,0.00011573,2]
[344736740,1733763031910,-2000.0,0.00011652,2]
[344736741,1733763031920,-871.07,0.000117,2]
[344736742,1733763031930,-2000.0,0.0001174,2]
[344736743,1733763031939,-242.41,0.00011781,2]
[344736744,1733763031949,-435.74,0.000118,2]
[344736745,1733763031958,-435.74,0.000118,2]
[344736746,1733763031968,-351.22,0.000118,2]
[344736747,1733763031977,-435.74,0.000118,2]
[344736748,1733763031986,-3667.1,0.000118,2]
[344736749,1733763031996,-169.81,0.00011811,2]
[344736750,1733763032005,-768.51,0.00011836,2]
[344736751,1733763032015,-1536.76,0.00011836,2]
[344736752,1733763032024,-409.928,0.0001188,2]
[344736753,1733763032033,-150.0,0.00011899,2]
[344736754,1733763032044,-507.07,0.000119,2]
[344736755,1733763032054,-1504.32,0.000119,2]
[344736756,1733763032063,-853.49,0.000119,2]
[344736757,1733763032072,-871.14,0.000119,2]
[344736758,1733763032081,-435.74,0.000119,2]
[344736759,1733763032091,-435.74,0.000119,2]
[344736760,1733763032100,-300.0,0.00012,2]
[344736761,1733763032109,-1000.0,0.00012066,2]
[344736762,1733763032119,-2000.0,0.00012068,2]
[344736763,1733763032128,-417.29,0.00012082,2]
[344736764,1733763032137,-428.04992712,0.00012158,2]
[344736765,1733763032147,-150.0,0.0001222,2]
[344736766,1733763032157,-151.4,0.0001222,2]
[344736767,1733763032166,-2543.7327,0.000123,2]
[344736768,1733763032175,-253.57660646,0.00012312,2]
[344736769,1733763032185,-27014.40884218,0.00012313,2]
[344736770,1733763034651,-3237.79270211,0.00012313,2]
[344736771,1733763034664,-541.345,0.00012313,2]
[344736772,1733763034721,-1022.98524474,0.00012313,2]
[344736773,1733763034735,-491.65,0.00012313,2]
[344736774,1733763034778,-3974.4066,0.00012313,2]
[344736775,1733763034835,-39846.556656,0.00012313,2]
[344736784,1733763037724,-35432.26468232,0.00012313,2]
[344736785,1733763037734,-2500.0,0.00012399,2]
[344736786,1733763037743,-2828.47647013,0.00012399,2]
[344736787,1733763037754,-2828.47647008,0.00012399,2]
[344736788,1733763037764,-2828.47647008,0.00012399,2]
[344736789,1733763037777,-2828.47647008,0.00012399,2]
[344736790,1733763037791,-2828.47647008,0.00012399,2]
[344736791,1733763037801,-2828.47647008,0.00012399,2]
[344736792,1733763037810,-2828.47647008,0.00012399,2]
[344736793,1733763037820,-2828.47647008,0.00012399,2]
[344736794,1733763037830,-2828.47647008,0.00012399,2]
[344736795,1733763037840,-259.21132527,0.00012399,2]
[344736796,1733763037849,-259.21132518,0.00012399,2]
[344736797,1733763037858,-259.21132518,0.00012399,2]
[344736798,1733763037868,-259.21132518,0.00012399,2]
[344736799,1733763037878,-259.21132518,0.00012399,2]
[344736800,1733763037887,-8500.0,0.000124,2]
[344736801,1733763037896,-1938.23420954,0.000124,2]
[344736802,1733763037906,-6382.0,0.00012466,2]
[344736803,1733763037915,-162.70582722,0.0001247,10]
[344736804,1733763037924,-2000.0,0.00012483,2]
[344736805,1733763037933,-2772.94,0.00012498,2]
[344736806,1733763037943,-170.229,0.00012498,2]
[344736807,1733763037952,-584.7113168,0.00012499,3]
[344736808,1733763037980,-4896.73822788,0.00012499,3]
[344736809,1733763037991,-201899.70346751,0.00012499,3]
[344736810,1733763038000,-500.0,0.00012499,2]
[344736811,1733763038009,-1000.0,0.00012499,2]
[344736812,1733763038018,-1000.0,0.00012499,2]
[344736813,1733763038031,-626.0,0.000125,2]
[344736814,1733763038040,-20000.0,0.000125,2]
[344736815,1733763038050,-28951239.91169722,0.000125,2]
[344736816,1733763038060,-200.0,0.000125,2]
[344736817,1733763038070,-150.0,0.000125,2]
[344736818,1733763038080,-1290.0,0.000125,2]
[344736820,1733763038089,-3000.0,0.000125,2]
[344736822,1733763038099,-500.0,0.0001252,7]
[344736824,1733763038108,-500.0,0.0001254,8]
[344736826,1733763038117,-1262.0,0.00012549,2]
[344736828,1733763038126,-567.0,0.00012549,2]
[344736830,1733763038136,-2005.0,0.00012549,2]
[344736832,1733763038145,-631.0,0.00012549,2]
[344736834,1733763038154,-152.242,0.00012549,2]
[344736836,1733763038164,-563.0,0.00012549,2]
[344736838,1733763038173,-1894.0,0.00012549,2]
[344736839,1733763038182,-3762.0,0.00012549,2]
[344736840,1733763038192,-1253.0,0.00012549,2]
[344736841,1733763038201,-817.0,0.00012549,2]
[344736842,1733763038210,-3595.0,0.00012549,2]
[344736843,1733763038219,-973.0,0.00012549,2]
[344736844,1733763038229,-535.0,0.00012549,2]
[344736845,1733763038238,-5966.0,0.00012549,2]
[344736846,1733763038247,-150.0,0.00012549,2]
[344736847,1733763038257,-150.0,0.00012549,2]
[344736848,1733763038266,-1167.0,0.00012549,2]
[344736849,1733763038275,-13721.0,0.00012549,2]
[344736850,1733763038284,-150.0,0.00012549,2]
[344736851,1733763038294,-150.0,0.00012549,2]
[344736852,1733763038314,-500.0,0.0001256,9]
[344736853,1733763038324,-650.78,0.00012562,2]
[344736854,1733763038334,-500.0,0.0001258,10]
[344736855,1733763038344,-688.0,0.000126,2]
[344736856,1733763038357,-5000.0,0.00012603,2]
[344736857,1733763038367,-200.0,0.00012625,2]
[344736858,1733763038376,-266.11,0.00012636,2]
[344736859,1733763038390,-200.0,0.00012679,2]
[344736860,1733763038399,-200.0,0.00012751,2]
[344736861,1733763038408,-52053.02595484,0.00012776,2]
[344736862,1733763038418,-768.51,0.00012795,2]
[344736863,1733763038571,-756.24,0.00012795,2]
[344736864,1733763038582,-624648.85229312,0.00012876,2]
[344736865,1733763038592,-38102.77150018,0.00012876,2]
[344736866,1733763038603,-154.462037,0.00012876,2]
[344736867,1733763038614,-154.462037,0.00012876,2]
[344736868,1733763038625,-154.462037,0.00012876,2]
[344736869,1733763038635,-154.462037,0.00012876,2]
[344736870,1733763038644,-154.462037,0.00012876,2]
[344736871,1733763038654,-154.462037,0.00012876,2]
[344736872,1733763038664,-154.462037,0.00012876,2]
[344736873,1733763038673,-154.462037,0.00012876,2]
[344736874,1733763038683,-154.462037,0.00012876,2]
[344736875,1733763038692,-154.462037,0.00012876,2]
[344736876,1733763038702,-500.0,0.00012876,2]
[344736877,1733763038711,-500.0,0.00012876,2]
[344736878,1733763038720,-500.0,0.00012876,2]
[344736879,1733763038730,-500.0,0.00012876,2]
[344736880,1733763038739,-575.04,0.00012876,2]
[344736881,1733763038749,-501.71376749,0.00012876,2]
[344736882,1733763038758,-500.0,0.00012876,2]
[344736883,1733763038767,-500.0,0.00012876,2]
[344736884,1733763038776,-500.0,0.00012876,2]
[344736885,1733763038786,-500.0,0.00012876,2]
[344736886,1733763038795,-500.0,0.00012876,2]
[344736887,1733763038804,-500.0,0.00012876,2]
[344736888,1733763038813,-550.51460037,0.00012876,2]
[344736889,1733763038826,-500.0,0.00012876,2]
[344736890,1733763038837,-230.23230778,0.00012876,2]
[344736891,1733763038846,-248.71961877,0.00012876,2]
[344736892,1733763038855,-501.61692368,0.00012876,2]
[344736893,1733763038864,-500.0,0.00012876,2]
[344736894,1733763038874,-500.0,0.00012876,2]
[344736895,1733763038883,-322.42640164,0.00012876,2]
[344736896,1733763038892,-500.0,0.00012876,2]
[344736897,1733763038901,-500.0,0.00012876,2]
[344736898,1733763038911,-500.0,0.00012876,2]
[344736899,1733763038920,-500.0,0.00012876,2]
[344736900,1733763038930,-500.6325851,0.00012876,2]
[344736901,1733763038939,-500.0,0.00012876,2]
[344736902,1733763038948,-502.85688716,0.00012876,2]
[344736903,1733763038958,-649.13054297,0.00012876,2]
[344736904,1733763038967,-500.0,0.00012876,2]
[344736905,1733763038977,-420.25376461,0.00012876,2]
[344736906,1733763038987,-500.0,0.00012876,2]
[344736907,1733763038996,-500.0,0.00012876,2]
[344736908,1733763039006,-502.12668412,0.00012876,2]
[344736909,1733763039015,-500.0,0.00012876,2]
[344736910,1733763039024,-500.0,0.00012876,2]
[344736911,1733763039033,-500.0,0.00012876,2]
[344736912,1733763039043,-500.0,0.00012876,2]
[344736913,1733763039052,-500.0,0.00012876,2]
[344736914,1733763039061,-191.16456031,0.00012876,2]
[344736915,1733763039070,-500.0,0.00012876,2]
[344736916,1733763039079,-500.2095238,0.00012876,2]
[344736917,1733763039088,-500.0,0.00012876,2]
[344736918,1733763039097,-500.0,0.00012876,2]
[344736919,1733763039106,-500.0,0.00012876,2]
[344736920,1733763039115,-500.0,0.00012876,2]
[344736921,1733763039124,-500.0,0.00012876,2]
[344736922,1733763039133,-500.0,0.00012876,2]
[344736923,1733763039143,-500.0,0.00012876,2]
[344736924,1733763039152,-500.0,0.00012876,2]
[344736925,1733763039161,-500.0,0.00012876,2]
[344736926,1733763039170,-500.0,0.00012876,2]
[344736927,1733763039179,-500.0,0.00012876,2]
[344736928,1733763039189,-500.0,0.00012876,2]
[344736929,1733763039198,-500.0,0.00012876,2]
[344736930,1733763039209,-500.0,0.00012876,2]
[344736931,1733763039218,-500.0,0.00012876,2]
[344736932,1733763039228,-500.0,0.00012876,2]
[344736933,1733763039240,-500.0,0.00012876,2]
[344736934,1733763039252,-500.0,0.00012876,2]
[344736935,1733763039261,-500.0,0.00012876,2]
[344736936,1733763039270,-500.0,0.00012876,2]
[344736937,1733763039279,-500.0,0.00012876,2]
[344736938,1733763039289,-500.0,0.00012876,2]
[344736939,1733763039298,-500.0,0.00012876,2]
[344736940,1733763039308,-500.0,0.00012876,2]
[344736941,1733763039317,-500.0,0.00012876,2]
[344736942,1733763039327,-327.83126996,0.00012876,2]
[344736943,1733763039336,-500.0,0.00012876,2]
[344736944,1733763039346,-500.0,0.00012876,2]
[344736945,1733763039355,-500.0,0.00012876,2]
[344736946,1733763039364,-398.47073556,0.00012876,2]
[344736947,1733763039374,-500.0,0.00012876,2]
[344736948,1733763039383,-500.0,0.00012876,2]
[344736949,1733763039393,-500.0,0.00012876,2]
[344736950,1733763039403,-500.0,0.00012876,2]
[344736951,1733763039413,-500.0,0.00012876,2]
[344736952,1733763039423,-500.0,0.00012876,2]
[344736953,1733763039432,-500.0,0.00012876,2]
[344736954,1733763039441,-500.0,0.00012876,2]
[344736955,1733763039450,-500.0,0.00012876,2]
[344736956,1733763039460,-500.0,0.00012876,2]
[344736957,1733763039469,-500.0,0.00012876,2]
[344736958,1733763039479,-500.0,0.00012876,2]
[344736959,1733763039489,-500.0,0.00012876,2]
[344736960,1733763039499,-500.0,0.00012876,2]
[344736961,1733763039509,-185.10680314,0.00012876,2]
[344736962,1733763039519,-500.0,0.00012876,2]
[344736963,1733763039528,-500.0,0.00012876,2]
[344736964,1733763039540,-500.0,0.00012876,2]
[344736965,1733763039551,-238.07109092,0.00012876,2]
[344736966,1733763039562,-500.0,0.00012876,2]
[344736967,1733763039574,-500.0,0.00012876,2]
[344736968,1733763039590,-500.0,0.00012876,2]
[344736969,1733763039599,-500.0,0.00012876,2]
[344736970,1733763039608,-500.0,0.00012876,2]
[344736971,1733763039618,-500.0,0.00012876,2]
[344736972,1733763039632,-500.0,0.00012876,2]
[344736974,1733763039643,-500.0,0.00012876,2]
[344736975,1733763039656,-500.0,0.00012876,2]
[344736976,1733763039665,-500.0,0.00012876,2]
[344736977,1733763039675,-500.0,0.00012876,2]
[344736978,1733763039684,-397.73452103,0.00012876,2]
[344736979,1733763039693,-172.50746202,0.00012876,2]
[344736980,1733763039703,-500.0,0.00012876,2]
[344736981,1733763039713,-500.0,0.00012876,2]
[344736982,1733763039722,-509.53737199,0.00012876,2]
[344736983,1733763039732,-749.7,0.00012876,2]
[344736984,1733763039742,-749.7,0.00012876,2]
[344736985,1733763039752,-749.7,0.00012876,2]
[344736986,1733763039761,-749.7,0.00012876,2]
[344736987,1733763039771,-749.7,0.00012876,2]
[344736988,1733763039781,-500.0,0.00012876,2]
[344736989,1733763039791,-749.7,0.00012876,2]
[344736990,1733763039800,-500.0,0.00012876,2]
[344736991,1733763039810,-749.7,0.00012876,2]
[344736992,1733763039819,-500.0,0.00012876,2]
[344736993,1733763039829,-749.7,0.00012876,2]
[344736994,1733763039839,-749.7,0.00012876,2]
[344736995,1733763039849,-749.7,0.00012876,2]
[344736996,1733763039858,-749.7,0.00012876,2]
[344736997,1733763039867,-749.7,0.00012876,2]
[344736998,1733763039877,-749.7,0.00012876,2]
[344736999,1733763039887,-749.7,0.00012876,2]
[344737000,1733763039896,-749.7,0.00012876,2]
[344737001,1733763039906,-749.7,0.00012876,2]
[344737002,1733763039916,-749.7,0.00012876,2]
[344737003,1733763039925,-749.7,0.00012876,2]
[344737004,1733763039935,-749.7,0.00012876,2]
[344737005,1733763039945,-749.7,0.00012876,2]
[344737006,1733763039954,-749.7,0.00012876,2]
[344737007,1733763039963,-749.7,0.00012876,2]
[344737008,1733763039973,-749.7,0.00012876,2]
[344737009,1733763039982,-535.96559137,0.00012876,2]
[344737010,1733763039991,-501.62109615,0.00012876,2]
[344737011,1733763040001,-749.83669479,0.00012876,2]
[344737012,1733763040011,-500.0,0.00012876,2]
[344737013,1733763040020,-500.0,0.00012876,2]
[344737014,1733763040030,-500.0,0.00012876,2]
[344737015,1733763040039,-500.0,0.00012876,2]
[344737016,1733763040048,-500.0,0.00012876,2]
[344737017,1733763040057,-500.0,0.00012876,2]
[344737018,1733763040067,-185.95839931,0.00012876,2]
[344737019,1733763040083,-500.0,0.00012876,2]
[344737020,1733763040098,-500.0,0.00012876,2]
[344737021,1733763040108,-500.0,0.00012876,2]
[344737022,1733763040117,-500.0,0.00012876,2]
[344737023,1733763040127,-499.34207655,0.00012876,2]
[344737024,1733763040136,-500.0,0.00012876,2]
[344737025,1733763040146,-152.31202386,0.00012876,2]
[344737026,1733763040156,-500.0,0.00012876,2]
[344737027,1733763040166,-500.90437377,0.00012876,2]
[344737028,1733763040176,-1583.44,0.00012876,2]
[344737029,1733763040186,-1583.44,0.00012876,2]
[344737030,1733763040195,-1583.44,0.00012876,2]
[344737031,1733763040206,-1583.44,0.00012876,2]
[344737032,1733763040216,-1583.44,0.00012876,2]
[344737033,1733763040226,-1583.44,0.00012876,2]
[344737034,1733763040236,-500.0,0.00012876,2]
[344737035,1733763040245,-1583.44,0.00012876,2]
[344737036,1733763040255,-1583.44,0.00012876,2]
[344737037,1733763040265,-1583.44,0.00012876,2]
[344737038,1733763040274,-1583.44,0.00012876,2]
[344737039,1733763040284,-1583.44,0.00012876,2]
[344737040,1733763040294,-1583.44,0.00012876,2]
[344737041,1733763040304,-1583.44,0.00012876,2]
[344737042,1733763040315,-1583.44,0.00012876,2]
[344737044,1733763040336,-1583.44,0.00012876,2]
[344737046,1733763040345,-500.0,0.00012876,2]
[344737048,1733763040355,-1583.44,0.00012876,2]
[344737049,1733763040365,-500.0,0.00012876,2]
[344737051,1733763040374,-1583.44,0.00012876,2]
[344737053,1733763040383,-500.0,0.00012876,2]
[344737056,1733763040393,-1583.44,0.00012876,2]
[344737057,1733763040403,-500.0,0.00012876,2]
[344737058,1733763040412,-1583.44,0.00012876,2]
[344737059,1733763040422,-500.0,0.00012876,2]
[344737060,1733763040432,-1583.44,0.00012876,2]
[344737062,1733763040441,-503.56919011,0.00012876,2]
[344737063,1733763040451,-500.0,0.00012876,2]
[344737064,1733763040461,-1583.44,0.00012876,2]
[344737066,1733763040470,-500.0,0.00012876,2]
[344737068,1733763040480,-1583.44,0.00012876,2]
[344737069,1733763040490,-1583.44,0.00012876,2]
[344737070,1733763040499,-500.1940805,0.00012876,2]
[344737071,1733763040510,-1583.59361827,0.00012876,2]
[344737072,1733763040520,-500.0,0.00012876,2]
[344737073,1733763040530,-500.0,0.00012876,2]
[344737074,1733763040539,-500.0,0.00012876,2]
[344737075,1733763040550,-265.23447182,0.00012876,2]
[344737076,1733763040562,-332.49801346,0.00012876,2]
[344737077,1733763040575,-500.0,0.00012876,2]
[344737078,1733763040588,-500.0,0.00012876,2]
[344737079,1733763040599,-500.0,0.00012876,2]
[344737080,1733763040609,-500.0,0.00012876,2]
[344737081,1733763040619,-500.0,0.00012876,2]
[344737082,1733763040628,-500.0,0.00012876,2]
[344737083,1733763040639,-500.0,0.00012876,2]
[344737084,1733763040649,-911.78,0.00012876,2]
[344737085,1733763040658,-191.03460513,0.00012876,2]
[344737086,1733763040668,-911.78,0.00012876,2]
[344737087,1733763040678,-911.78,0.00012876,2]
[344737088,1733763040688,-911.78,0.00012876,2]
[344737089,1733763040697,-500.0,0.00012876,2]
[344737090,1733763040707,-911.78,0.00012876,2]
[344737091,1733763040717,-911.78,0.00012876,2]
[344737092,1733763040848,-500.0,0.00012876,2]
[344737093,1733763040858,-911.78,0.00012876,2]
[344737094,1733763040868,-911.78,0.00012876,2]
[344737095,1733763040877,-502.48449671,0.00012876,2]
[344737096,1733763040886,-500.0,0.00012876,2]
[344737097,1733763040895,-911.78,0.00012876,2]
[344737098,1733763040905,-500.0,0.00012876,2]
[344737099,1733763040914,-911.78,0.00012876,2]
[344737100,1733763040923,-500.0,0.00012876,2]
[344737101,1733763040931,-500.0,0.00012876,2]
[344737102,1733763040941,-500.0,0.00012876,2]
[344737103,1733763040950,-911.78,0.00012876,2]
[344737104,1733763040960,-500.0,0.00012876,2]
[344737105,1733763040968,-500.0,0.00012876,2]
[344737106,1733763040977,-500.0,0.00012876,2]
[344737107,1733763040986,-502.03224314,0.00012876,2]
[344737108,1733763040995,-500.0,0.00012876,2]
[344737109,1733763041005,-348.10313234,0.00012876,2]
[344737110,1733763041014,-911.78,0.00012876,2]
[344737111,1733763041023,-911.78,0.00012876,2]
[344737112,1733763041033,-911.78,0.00012876,2]
[344737113,1733763041042,-911.78,0.00012876,2]
[344737114,1733763041051,-911.78,0.00012876,2]
[344737115,1733763041061,-911.78,0.00012876,2]
[344737116,1733763041070,-911.78,0.00012876,2]
[344737117,1733763041083,-500.0,0.00012876,2]
[344737118,1733763041092,-500.0,0.00012876,2]
[344737119,1733763041102,-500.0,0.00012876,2]
[344737120,1733763041111,-911.78,0.00012876,2]
[344737121,1733763041121,-500.0,0.00012876,2]
[344737122,1733763041130,-501.28508909,0.00012876,2]
[344737123,1733763041139,-911.78,0.00012876,2]
[344737124,1733763041149,-500.0,0.00012876,2]
[344737125,1733763041158,-911.78,0.00012876,2]
[344737126,1733763041167,-911.78,0.00012876,2]
[344737127,1733763041177,-911.78,0.00012876,2]
[344737128,1733763041186,-911.87853429,0.00012876,2]
[344737129,1733763041196,-500.0,0.00012876,2]
[344737130,1733763041206,-648.41129157,0.00012876,2]
[344737131,1733763041215,-500.0,0.00012876,2]
[344737132,1733763041225,-500.0,0.00012876,2]
[344737133,1733763041235,-500.0,0.00012876,2]
[344737134,1733763041244,-518.06705017,0.00012876,2]
[344737135,1733763041254,-500.0,0.00012876,2]
[344737136,1733763041263,-500.0,0.00012876,2]
[344737137,1733763041272,-500.0,0.00012876,2]
[344737138,1733763041282,-500.0,0.00012876,2]
[344737139,1733763041291,-500.0,0.00012876,2]
[344737140,1733763041301,-500.0,0.00012876,2]
[344737141,1733763041310,-500.0,0.00012876,2]
[344737142,1733763041320,-500.0,0.00012876,2]
[344737143,1733763041332,-500.0,0.00012876,2]
[344737144,1733763041342,-561.27361839,0.00012876,2]
[344737145,1733763041350,-500.0,0.00012876,2]
[344737146,1733763041359,-500.0,0.00012876,2]
[344737147,1733763041369,-500.0,0.00012876,2]
[344737148,1733763041379,-332.28559523,0.00012876,2]
[344737149,1733763041388,-500.0,0.00012876,2]
[344737150,1733763041398,-500.0,0.00012876,2]
[344737151,1733763041407,-500.0,0.00012876,2]
[344737152,1733763041416,-500.0,0.00012876,2]
[344737153,1733763041425,-229.16478648,0.00012876,2]
[344737154,1733763041435,-1040.29,0.00012876,2]
[344737155,1733763041445,-1040.29,0.00012876,2]
[344737156,1733763041455,-1040.29,0.00012876,2]
[344737157,1733763041465,-1040.29,0.00012876,2]
[344737158,1733763041474,-1040.29,0.00012876,2]
[344737159,1733763041484,-1040.29,0.00012876,2]
[344737160,1733763041493,-1040.29,0.00012876,2]
[344737161,1733763041503,-1040.29,0.00012876,2]
[344737162,1733763041515,-500.0,0.00012876,2]
[344737163,1733763041524,-503.41465829,0.00012876,2]
[344737164,1733763041534,-1040.29,0.00012876,2]
[344737165,1733763041544,-500.0,0.00012876,2]
[344737166,1733763041554,-1040.29,0.00012876,2]
[344737167,1733763041568,-589.57482654,0.00012876,2]
[344737168,1733763041583,-1040.29,0.00012876,2]
[344737169,1733763041592,-1040.29,0.00012876,2]
[344737170,1733763041602,-1040.29,0.00012876,2]
[344737171,1733763041612,-1040.29,0.00012876,2]
[344737172,1733763041622,-1040.29,0.00012876,2]
[344737173,1733763041633,-1040.29,0.00012876,2]
[344737174,1733763041644,-1040.29,0.00012876,2]
[344737175,1733763041654,-1040.29,0.00012876,2]
[344737176,1733763041663,-500.0,0.00012876,2]
[344737177,1733763041672,-978.91,0.00012876,2]
[344737178,1733763041682,-1040.29,0.00012876,2]
[344737179,1733763041692,-500.0,0.00012876,2]
[344737180,1733763041702,-978.91,0.00012876,2]
[344737181,1733763041712,-1040.29,0.00012876,2]
[344737182,1733763041722,-500.0,0.00012876,2]
[344737183,1733763041732,-978.91,0.00012876,2]
[344737184,1733763041741,-1040.29,0.00012876,2]
[344737185,1733763041751,-363.0807204,0.00012876,2]